[Event "Israeli U18-Team-ch 2024"]
[Site "Rishon LeZion"]
[Date "2024.08.01"]
[Round "5.12"]
[White "Tauber, Ori"]
[Black "Pearl, Oliver"]
[Result "0-1"]
[ECO "D31"]
[WhiteElo "1741"]
[BlackElo "1795"]
[Annotator "NA RC"]
[PlyCount "58"]
[EventDate "2024.08.01"]
[EventType "team-tourn"]
[EventCountry "ISR"]
[SourceTitle "playchess.com"]
[Source "ChessBase"]
[SourceQuality "1"]
[TimeControl "3000+10"]

1. d4 {[%emt 0:00:01]} d5 {[%emt 0:00:14]} 2. c4 {[%emt 0:00:02]} e6 {[%emt 0:00:06]} 3. Nc3 {[%emt 0:00:02]} a6 {[%emt 0:00:13]} 4. c5 {[%emt 0:00:45]} b6 {[%emt 0:01:33]} 5. cxb6 {[%emt 0:50:10]} cxb6 {[%emt 0:02:37]} 6. Nf3 {[%emt 0:00:00]} Bb7 {[%emt 0:01:11]} 7. Bf4 {[%emt 0:00:00]} Nf6 {[%emt 0:00:48]} 8. e3 {[%emt 0:00:00]} Bd6 {[%emt 0:00:58]} 9. Ne5 {[%emt 0:00:00]} O-O {[%emt 0:01:06]} 10. Bd3 {[%emt 0:00:00]} Nc6 {[%emt 0:11:06]} 11. Bg3 {[%emt 0:00:00]} Bxe5 {[%emt 0:06:21]} 12. dxe5 {[%emt 0:00:00]} Nd7 {[%emt 0:00:34]} 13. f4 {[%emt 0:00:00]} Nc5 {[%emt 0:03:27]} 14. Bb1 {[%emt 0:00:00]} d4 {[%emt 0:06:37]} 15. b4 {[%emt 0:00:00]} dxc3 {[%emt 0:01:53]} 16. bxc5 {[%emt 0:00:00]} Qxd1+ {[%emt 0:00:15]} 17. Kxd1 {[%emt 0:00:00]} Nb4 {[%emt 0:03:30]} 18. e4 {[%emt 0:00:00]} Rac8 {[%emt 0:05:44]} 19. Kc1 {[%emt 0:00:00]} c2 {[%emt 0:01:18]} 20. Bxc2 {[%emt 0:00:00]} Rxc5 {[%emt 0:00:10]} 21. Kb2 {[%emt 0:00:00]} Nxc2 {[%emt 0:01:22]} 22. Rac1 {[%emt 0:00:00]} Rfc8 {[%emt 0:00:16]} 23. a4 {[%emt 0:00:00]} Bxe4 {[%emt 0:00:36]} 24. Bf2 {[%emt 0:00:00]} Rc4 {[%emt 0:00:39]} 25. Rhd1 {[%emt 0:00:00]} Rb4+ {[%emt 0:00:27]} 26. Ka2 {[%emt 0:00:00]} Bd5+ {[%emt 0:00:09]} 27. Rxd5 {[%emt 0:00:00]} exd5 {[%emt 0:00:05]} 28. Be1 {[%emt 0:00:00]} Rbc4 {[%emt 0:00:12]} 29. Bd2 {[%emt 0:00:00]} Nb4+ {[%emt 0:00:11]} 0-1

[Event "Israeli U18-Team-ch 2024"]
[Site "Rishon LeZion"]
[Date "2024.08.01"]
[Round "5.13"]
[White "Leib, Yoni"]
[Black "Medovoy, Yaniv"]
[Result "0-1"]
[ECO "D05"]
[WhiteElo "1977"]
[BlackElo "2059"]
[Annotator "RC"]
[PlyCount "62"]
[EventDate "2024.08.01"]
[EventType "team-tourn"]
[EventCountry "ISR"]
[SourceTitle "playchess.com"]
[Source "ChessBase"]
[SourceQuality "1"]
[TimeControl "3000+10"]

1. Nf3 {[%emt 0:01:01]} d5 {[%emt 0:00:08]} 2. e3 {[%emt 0:00:10]} Nf6 {[%emt 0:00:30]} 3. b3 {[%emt 0:00:08]} e6 {[%emt 0:00:30]} 4. Bb2 {[%emt 0:00:12]} Nbd7 {[%emt 0:00:19]} 5. d4 {[%emt 0:01:11]} Bd6 {[%emt 0:00:45]} 6. Bd3 {[%emt 0:00:39]} c6 {[%emt 0:01:41]} 7. O-O {[%emt 0:01:20]} Qc7 {[%emt 0:00:13]} 8. Nbd2 {[%emt 0:01:22]} e5 {[%emt 0:00:39]} 9. dxe5 {[%emt 0:00:17]} Nxe5 {[%emt 0:00:06]} 10. Bxe5 {[%emt 0:01:19]} Bxe5 {[%emt 0:00:06]} 11. Nxe5 {[%emt 0:00:42]} Qxe5 {[%emt 0:00:06]} 12. c4 {[%emt 0:07:45]} O-O {[%emt 0:04:13]} 13. Nf3 {[%emt 0:01:24]} Qe7 {[%emt 0:01:13]} 14. cxd5 {[%emt 0:01:22]} Nxd5 {[%emt 0:00:29]} 15. Nd4 {[%emt 0:02:11]} c5 {[%emt 0:07:28]} 16. Nf5 {[%emt 0:08:37]} Bxf5 {[%emt 0:04:36]} 17. Bxf5 {[%emt 0:00:02]} Rad8 {[%emt 0:01:44]} 18. Qf3 {[%emt 0:01:05]} b5 {[%emt 0:08:07]} 19. Rac1 {[%emt 0:01:51]} b4 {[%emt 0:00:47]} 20. Rc4 {[%emt 0:01:45]} g6 {[%emt 0:01:21]} 21. Bh3 {[%emt 0:04:43]} Nc3 {[%emt 0:03:03]} 22. Qc6 {[%emt 0:01:50]} Rd2 {[%emt 0:01:26]} 23. a3 {[%emt 0:04:50]} Rb2 {[%emt 0:03:10]} 24. Rxc5 {[%emt 0:02:36]} Ne4 {[%emt 0:02:19]} 25. Ra5 {[%emt 0:04:44]} Nxf2 {[%emt 0:00:23]} 26. Qf3 {[%emt 0:01:24]} Nxh3+ {[%emt 0:00:44]} 27. Qxh3 {[%emt 0:00:00]} bxa3 {[%emt 0:00:25]} 28. e4 {[%emt 0:00:08]} Qb4 {[%emt 0:01:27]} 29. Ra4 {[%emt 0:00:08]} Qc5+ {[%emt 0:00:15]} 30. Kh1 {[%emt 0:00:04]} Qb5 {[%emt 0:01:13]} 31. Kg1 {[%emt 0:00:18]} Rxb3 {[%emt 0:00:06]} 0-1

[Event "Israeli U18-Team-ch 2024"]
[Site "Rishon LeZion"]
[Date "2024.08.01"]
[Round "5.14"]
[White "Meirovich, Ilay"]
[Black "Ribstein, Orel"]
[Result "0-1"]
[ECO "E73"]
[WhiteElo "1957"]
[BlackElo "2066"]
[Annotator "RC"]
[PlyCount "100"]
[EventDate "2024.08.01"]
[EventType "team-tourn"]
[EventCountry "ISR"]
[SourceTitle "playchess.com"]
[Source "ChessBase"]
[SourceQuality "1"]
[TimeControl "3000+10"]

1. d4 {[%emt 0:00:02]} Nf6 {[%emt 0:00:22]} 2. c4 {[%emt 0:00:13]} g6 {[%emt 0:00:02]} 3. Nc3 {[%emt 0:00:21]} Bg7 {[%emt 0:00:01]} 4. e4 {[%emt 0:00:17]} d6 {[%emt 0:00:08]} 5. Be2 {[%emt 0:01:26]} O-O {[%emt 0:00:09]} 6. Be3 {[%emt 0:48:51]} a5 {[%emt 0:00:35]} 7. Nf3 {[%emt 0:00:00]} Bg4 {[%emt 0:00:09]} 8. O-O {[%emt 0:00:00]} Nfd7 {[%emt 0:00:04]} 9. Qd2 {[%emt 0:00:00]} e5 {[%emt 0:04:32]} 10. d5 {[%emt 0:00:00]} Bxf3 {[%emt 0:01:58]} 11. Bxf3 {[%emt 0:00:00]} f5 {[%emt 0:00:01]} 12. Bg5 {[%emt 0:00:00]} Bf6 {[%emt 0:02:13]} 13. Bh6 {[%emt 0:00:00]} Bg7 {[%emt 0:00:57]} 14. Bg5 {[%emt 0:00:00]} Qe8 {[%emt 0:00:46]} 15. exf5 {[%emt 0:00:00]} gxf5 {[%emt 0:00:15]} 16. h4 {[%emt 0:00:00]} Nf6 {[%emt 0:01:17]} 17. g3 {[%emt 0:00:00]} Qg6 {[%emt 0:01:58]} 18. c5 {[%emt 0:00:00]} dxc5 {[%emt 0:06:52]} 19. d6 {[%emt 0:00:00]} c6 {[%emt 0:00:03]} 20. Na4 {[%emt 0:00:00]} Nbd7 {[%emt 0:03:06]} 21. Rac1 {[%emt 0:00:00]} c4 {[%emt 0:09:11]} 22. Bg2 {[%emt 0:00:00]} Kh8 {[%emt 0:02:39]} 23. Qe3 {[%emt 0:00:00]} Nd5 {[%emt 0:05:07]} 24. Bxd5 {[%emt 0:00:00]} cxd5 {[%emt 0:00:02]} 25. Be7 {[%emt 0:00:00]} f4 {[%emt 0:00:58]} 26. Qf3 {[%emt 0:00:00]} e4 {[%emt 0:00:01]} 27. Qg2 {[%emt 0:00:13]} Rg8 {[%emt 0:00:21]} 28. Qh3 {[%emt 0:00:53]} Bd4 {[%emt 0:02:10]} 29. Bg5 {[%emt 0:02:04]} fxg3 {[%emt 0:00:21]} 30. Qxd7 {[%emt 0:00:09]} gxf2+ {[%emt 0:00:26]} 31. Kh1 {[%emt 0:00:18]} h6 {[%emt 0:01:05]} 32. Qh3 {[%emt 0:00:14]} hxg5 {[%emt 0:00:26]} 33. d7 {[%emt 0:00:10]} gxh4 {[%emt 0:01:45]} 34. Rcd1 {[%emt 0:00:15]} Qg3 {[%emt 0:02:06]} 35. Qxg3 {[%emt 0:00:08]} hxg3 {[%emt 0:00:02]} 36. Kg2 {[%emt 0:00:04]} e3 {[%emt 0:02:18]} 37. Rh1+ {[%emt 0:00:05]} Kg7 {[%emt 0:00:00]} 38. Rxd4 {[%emt 0:00:24]} e2 {[%emt 0:00:07]} 39. Rg4+ {[%emt 0:00:05]} Kf6 {[%emt 0:00:18]} 40. Rf4+ {[%emt 0:00:03]} Ke6 {[%emt 0:00:49]} 41. Rxf2 {[%emt 0:00:02]} gxf2+ {[%emt 0:00:03]} 42. Kxf2 {[%emt 0:00:01]} b5 {[%emt 0:00:19]} 43. Rh6+ {[%emt 0:00:01]} Ke5 {[%emt 0:00:41]} 44. Nb6 {[%emt 0:00:05]} Rg2+ {[%emt 0:00:23]} 45. Ke1 {[%emt 0:00:00]} Rf8 {[%emt 0:00:14]} 46. Rh1 {[%emt 0:00:02]} d4 {[%emt 0:00:14]} 47. Kd2 {[%emt 0:00:13]} d3 {[%emt 0:00:03]} 48. b3 {[%emt 0:00:05]} Rgg8 {[%emt 0:00:13]} 49. Re1 {[%emt 0:00:11]} Rf1 {[%emt 0:00:08]} 50. bxc4 {[%emt 0:00:09]} Rxe1 {[%emt 0:00:05]} 0-1

[Event "Israeli U18-Team-ch 2024"]
[Site "Rishon LeZion"]
[Date "2024.08.01"]
[Round "5.15"]
[White "Azoulay, Yehonatan"]
[Black "Abitbul, Matan"]
[Result "1/2-1/2"]
[ECO "C47"]
[WhiteElo "2009"]
[BlackElo "2035"]
[Annotator "RC"]
[PlyCount "76"]
[EventDate "2024.08.01"]
[EventType "team-tourn"]
[EventCountry "ISR"]
[SourceTitle "playchess.com"]
[Source "ChessBase"]
[SourceQuality "1"]
[TimeControl "3000+10"]

1. e4 {[%emt 0:00:01]} e5 {[%emt 0:01:10]} 2. Nf3 {[%emt 0:00:13]} Nc6 {[%emt 0:00:01]} 3. Nc3 {[%emt 0:00:07]} Nf6 {[%emt 0:00:02]} 4. d4 {[%emt 0:00:05]} exd4 {[%emt 0:00:04]} 5. Nxd4 {[%emt 0:00:02]} Bb4 {[%emt 0:00:04]} 6. Nxc6 {[%emt 0:00:04]} bxc6 {[%emt 0:00:05]} 7. Bd3 {[%emt 0:00:05]} O-O {[%emt 0:00:07]} 8. O-O {[%emt 0:00:03]} d5 {[%emt 0:00:02]} 9. exd5 {[%emt 0:00:05]} Bg4 {[%emt 0:00:02]} 10. f3 {[%emt 0:09:17]} Bh5 {[%emt 0:00:01]} 11. Bg5 {[%emt 0:05:30]} Qd6 {[%emt 0:00:01]} 12. Bxf6 {[%emt 0:00:54]} Qxf6 {[%emt 0:00:01]} 13. dxc6 {[%emt 0:00:58]} Bxc3 {[%emt 0:01:03]} 14. bxc3 {[%emt 0:00:03]} Qxc3 {[%emt 0:00:13]} 15. Be4 {[%emt 0:03:23]} Bg6 {[%emt 0:02:28]} 16. Qe1 {[%emt 0:07:03]} Qc5+ {[%emt 0:12:10]} 17. Qf2 {[%emt 0:02:11]} Qxf2+ {[%emt 0:03:19]} 18. Rxf2 {[%emt 0:04:33]} Bxe4 {[%emt 0:00:07]} 19. fxe4 {[%emt 0:00:01]} Rab8 {[%emt 0:09:00]} 20. Rf5 {[%emt 0:01:12]} Rb4 {[%emt 0:00:29]} 21. Ra5 {[%emt 0:03:43]} Rc4 {[%emt 0:00:19]} 22. Rxa7 {[%emt 0:02:12]} Rxc6 {[%emt 0:00:07]} 23. Rc1 {[%emt 0:00:03]} Re8 {[%emt 0:02:54]} 24. Ra4 {[%emt 0:02:39]} Kf8 {[%emt 0:07:42]} 25. c3 {[%emt 0:01:19]} Rb8 {[%emt 0:01:27]} 26. Rc2 {[%emt 0:00:40]} Ke7 {[%emt 0:01:00]} 27. Kf2 {[%emt 0:00:24]} Ke6 {[%emt 0:00:48]} 28. Ke3 {[%emt 0:01:21]} Rb5 {[%emt 0:00:38]} 29. c4 {[%emt 0:01:14]} Re5 {[%emt 0:00:06]} 30. Ra8 {[%emt 0:00:16]} Kf6 {[%emt 0:09:40]} 31. a4 {[%emt 0:00:51]} Rce6 {[%emt 0:00:00]} 32. Rf2+ {[%emt 0:00:55]} Ke7 {[%emt 0:00:00]} 33. Ra7 {[%emt 0:01:36]} Rxe4+ {[%emt 0:00:00]} 34. Kd3 {[%emt 0:00:01]} Re3+ {[%emt 0:00:00]} 35. Kd2 {[%emt 0:00:01]} Kd6 {[%emt 0:00:00]} 36. Rxf7 {[%emt 0:01:40]} Re2+ {[%emt 0:00:00]} 37. Kd1 {[%emt 0:00:21]} Re1+ {[%emt 0:00:00]} 38. Kd2 {[%emt 0:00:04]} Ke5 {[%emt 0:01:20]} 1/2-1/2

[Event "Israeli U18-Team-ch 2024"]
[Site "Rishon LeZion"]
[Date "2024.08.01"]
[Round "5.16"]
[White "Berlad, Asaf"]
[Black "Belkovsky, Guy"]
[Result "0-1"]
[ECO "C90"]
[WhiteElo "1955"]
[BlackElo "1869"]
[Annotator "RC"]
[PlyCount "120"]
[EventDate "2024.08.01"]
[EventType "team-tourn"]
[EventCountry "ISR"]
[SourceTitle "playchess.com"]
[Source "ChessBase"]
[SourceQuality "1"]
[TimeControl "3000+10"]

1. e4 {[%emt 0:00:06]} e5 {[%emt 0:00:06]} 2. Nf3 {[%emt 0:00:09]} Nc6 {[%emt 0:00:04]} 3. Bb5 {[%emt 0:00:16]} a6 {[%emt 0:00:07]} 4. Ba4 {[%emt 0:00:11]} Nf6 {[%emt 0:00:10]} 5. d3 {[%emt 0:00:13]} b5 {[%emt 0:00:04]} 6. Bb3 {[%emt 0:00:09]} Be7 {[%emt 0:00:24]} 7. O-O {[%emt 0:00:36]} O-O {[%emt 0:00:38]} 8. Re1 {[%emt 0:01:11]} d6 {[%emt 0:02:23]} 9. c3 {[%emt 0:00:35]} Be6 {[%emt 0:00:37]} 10. Nbd2 {[%emt 0:01:27]} Re8 {[%emt 0:01:34]} 11. h3 {[%emt 0:01:36]} Bxb3 {[%emt 0:06:15]} 12. Nxb3 {[%emt 0:04:25]} d5 {[%emt 0:02:11]} 13. Bg5 {[%emt 0:01:20]} dxe4 {[%emt 0:01:47]} 14. dxe4 {[%emt 0:00:19]} h6 {[%emt 0:01:54]} 15. Bxf6 {[%emt 0:03:23]} Bxf6 {[%emt 0:00:32]} 16. Nbd2 {[%emt 0:00:31]} Ne7 {[%emt 0:01:59]} 17. a4 {[%emt 0:01:29]} c5 {[%emt 0:05:54]} 18. Qc2 {[%emt 0:03:21]} Qc7 {[%emt 0:00:36]} 19. Nf1 {[%emt 0:00:35]} g6 {[%emt 0:00:14]} 20. Ne3 {[%emt 0:01:12]} Bg7 {[%emt 0:00:33]} 21. c4 {[%emt 0:01:07]} Rab8 {[%emt 0:07:22]} 22. Red1 {[%emt 0:07:44]} bxa4 {[%emt 0:04:38]} 23. Qxa4 {[%emt 0:01:43]} Qc6 {[%emt 0:02:17]} 24. Qxc6 {[%emt 0:03:00]} Nxc6 {[%emt 0:00:06]} 25. Rxa6 {[%emt 0:00:14]} Nd4 {[%emt 0:00:17]} 26. Rd2 {[%emt 0:02:09]} Rb7 {[%emt 0:03:28]} 27. Nd5 {[%emt 0:03:04]} Reb8 {[%emt 0:00:13]} 28. Nxd4 {[%emt 0:01:54]} exd4 {[%emt 0:00:18]} 29. Ra2 {[%emt 0:00:18]} Rb3 {[%emt 0:03:25]} 30. Nc7 {[%emt 0:01:23]} R8b4 {[%emt 0:00:14]} 31. Nd5 {[%emt 0:03:06]} Rxc4 {[%emt 0:00:04]} 32. Ra1 {[%emt 0:00:32]} d3 {[%emt 0:00:26]} 33. Rad1 {[%emt 0:00:05]} Rc2 {[%emt 0:01:05]} 34. Rxd3 {[%emt 0:00:27]} Rbxb2 {[%emt 0:00:03]} 35. Rf3 {[%emt 0:00:14]} Bd4 {[%emt 0:00:17]} 36. Ne3 {[%emt 0:01:12]} Bxe3 {[%emt 0:00:07]} 37. fxe3 {[%emt 0:00:02]} Rxg2+ {[%emt 0:00:08]} 38. Kf1 {[%emt 0:00:03]} Rh2 {[%emt 0:00:23]} 39. Rd8+ {[%emt 0:00:04]} Kg7 {[%emt 0:00:06]} 40. Kg1 {[%emt 0:00:02]} Rhd2 {[%emt 0:00:06]} 41. Rc8 {[%emt 0:00:10]} Rd1+ {[%emt 0:00:26]} 42. Rf1 {[%emt 0:00:01]} Rxf1+ {[%emt 0:00:02]} 43. Kxf1 {[%emt 0:00:02]} Rc2 {[%emt 0:00:18]} 44. e5 {[%emt 0:00:04]} Rh2 {[%emt 0:00:38]} 45. Rxc5 {[%emt 0:00:04]} Rxh3 {[%emt 0:00:02]} 46. Kf2 {[%emt 0:00:02]} Rh5 {[%emt 0:00:04]} 47. Kf3 {[%emt 0:00:11]} Rf5+ {[%emt 0:00:02]} 48. Kg3 {[%emt 0:00:28]} h5 {[%emt 0:00:22]} 49. Ra5 {[%emt 0:00:46]} Kh6 {[%emt 0:00:08]} 50. Rb5 {[%emt 0:00:23]} f6 {[%emt 0:00:04]} 51. Rb7 {[%emt 0:00:09]} Rxe5 {[%emt 0:00:05]} 52. Kf4 {[%emt 0:00:01]} h4 {[%emt 0:00:18]} 53. Rb8 {[%emt 0:00:12]} Rh5 {[%emt 0:00:28]} 54. Kg4 {[%emt 0:00:36]} h3 {[%emt 0:00:02]} 55. Rh8+ {[%emt 0:00:01]} Kg7 {[%emt 0:00:02]} 56. Rxh5 {[%emt 0:00:02]} gxh5+ {[%emt 0:00:02]} 57. Kxh3 {[%emt 0:00:02]} Kg6 {[%emt 0:00:10]} 58. Kg3 {[%emt 0:00:28]} Kg5 {[%emt 0:00:20]} 59. e4 {[%emt 0:00:04]} h4+ {[%emt 0:00:04]} 60. Kh3 {[%emt 0:00:02]} Kf4 {[%emt 0:00:06]} 0-1

[Event "Israeli U18-Team-ch 2024"]
[Site "Rishon LeZion"]
[Date "2024.08.01"]
[Round "6.2"]
[White "Milikow, Elie"]
[Black "Uritsky, Yonathan"]
[Result "1-0"]
[ECO "B06"]
[WhiteElo "2399"]
[BlackElo "2173"]
[Annotator "RC"]
[PlyCount "73"]
[EventDate "2024.08.01"]
[EventType "team-tourn"]
[EventCountry "ISR"]
[SourceTitle "playchess.com"]
[Source "ChessBase"]
[SourceQuality "1"]
[TimeControl "3000+10"]

1. e4 {[%emt 0:00:03]} c5 {[%emt 0:00:02]} 2. Nf3 {[%emt 0:00:06]} g6 {[%emt 0:00:08]} 3. c3 {[%emt 0:00:44]} d5 {[%emt 0:00:02]} 4. exd5 {[%emt 0:02:26]} Qxd5 {[%emt 0:00:06]} 5. d4 {[%emt 0:00:19]} Bg7 {[%emt 0:00:09]} 6. Be3 {[%emt 0:02:29]} cxd4 {[%emt 0:01:37]} 7. cxd4 {[%emt 0:03:00]} Nf6 {[%emt 0:01:13]} 8. Nc3 {[%emt 0:00:26]} Qa5 {[%emt 0:03:13]} 9. Bc4 {[%emt 0:04:58]} O-O {[%emt 0:01:43]} 10. h3 {[%emt 0:03:24]} a6 {[%emt 0:03:40]} 11. O-O {[%emt 0:08:49]} b5 {[%emt 0:00:11]} 12. Be2 {[%emt 0:00:56]} Nbd7 {[%emt 0:01:40]} 13. a3 {[%emt 0:04:14]} Bb7 {[%emt 0:00:41]} 14. Qd2 {[%emt 0:00:48]} Rac8 {[%emt 0:02:00]} 15. Rfc1 {[%emt 0:01:18]} Qd8 {[%emt 0:01:10]} 16. Qe1 {[%emt 0:05:02]} Nb6 {[%emt 0:00:57]} 17. Ne5 {[%emt 0:00:22]} Nfd7 {[%emt 0:01:34]} 18. Nd3 {[%emt 0:02:08]} Nc4 {[%emt 0:02:13]} 19. Nc5 {[%emt 0:00:52]} Nxc5 {[%emt 0:01:18]} 20. Bxc4 {[%emt 0:00:20]} Bxd4 {[%emt 0:03:49]} 21. Rd1 {[%emt 0:02:11]} e5 {[%emt 0:00:02]} 22. Bd5 {[%emt 0:02:07]} Qh4 {[%emt 0:05:53]} 23. Bxb7 {[%emt 0:03:16]} Nxb7 {[%emt 0:00:34]} 24. Nd5 {[%emt 0:00:17]} Rfe8 {[%emt 0:02:39]} 25. Bxd4 {[%emt 0:01:43]} exd4 {[%emt 0:00:38]} 26. Qd2 {[%emt 0:00:21]} Rcd8 {[%emt 0:00:16]} 27. g3 {[%emt 0:00:07]} Qxh3 {[%emt 0:00:51]} 28. Nf6+ {[%emt 0:00:01]} Kf8 {[%emt 0:04:26]} 29. Nxe8 {[%emt 0:00:17]} Rxe8 {[%emt 0:00:19]} 30. Qxd4 {[%emt 0:00:12]} Kg8 {[%emt 0:00:19]} 31. Qb6 {[%emt 0:00:03]} Re7 {[%emt 0:00:40]} 32. Qxa6 {[%emt 0:00:56]} Qf5 {[%emt 0:00:10]} 33. Rd2 {[%emt 0:00:31]} h5 {[%emt 0:02:27]} 34. Rad1 {[%emt 0:00:35]} h4 {[%emt 0:00:01]} 35. Rd5 {[%emt 0:00:19]} Qg4 {[%emt 0:00:36]} 36. Qf6 {[%emt 0:00:15]} Re8 {[%emt 0:00:41]} 37. R5d4 {[%emt 0:00:02]} 1-0